bitfinex/quotes_ETHUSD_20240915
["timestamp","ask_amount","ask_price","bid_price","bid_amount"]
[1726414528910,4.14399,2413.2,2412.8,3.26138108]
[1726414529146,4.14399,2413.2,2412.9,1.65690267]
[1726414529443,4.14407,2413.1,2412.8,0.87178108]
[1726414529634,4.14407,2413.1,2412.9,1.65702567]
[1726414529838,4.14407,2413.1,2412.6,5.55546755]
[1726414529839,4.14407,2413.1,2412.8,0.87178108]
[1726414530152,6.52897,2413.1,2412.9,1.65703892]
[1726414530356,4.14407,2413.1,2412.8,0.87178108]
[1726414530649,4.14407,2413.1,2412.9,1.65695305]
[1726414530857,4.14407,2413.1,2412.8,0.87178108]
[1726414531160,4.14407,2413.1,2412.9,1.65695585]
[1726414531375,4.14407,2413.1,2412.8,0.87178108]
[1726414531581,4.14407,2413.1,2412.9,1.65702512]
[1726414531785,4.14407,2413.1,2412.8,0.87178108]
[1726414532080,0.10925733,2413.0,2412.9,1.65709898]
[1726414532441,10.67252,2413.3,2412.9,1.65709898]
[1726414532650,0.10911151,2413.2,2412.8,0.87178108]
[1726414532879,10.67252,2413.3,2412.9,1.6569996]
[1726414533044,0.10911151,2413.2,2412.8,0.87178108]
[1726414533237,10.67252,2413.3,2412.8,0.87178108]
[1726414533238,6.5287,2413.3,2412.9,4.12606311]
[1726414533450,0.10910867,2413.2,2412.9,2.4691]
[1726414533750,6.5287,2413.3,2412.9,2.4691]
[1726414533957,0.10899401,2413.1,2412.9,2.4691]
[1726414534166,6.5287,2413.3,2412.9,2.4691]
[1726414534783,0.10905767,2413.2,2412.9,2.4691]
[1726414535144,6.5287,2413.3,2412.9,2.4691]
[1726414535674,0.10905767,2413.2,2412.9,2.4691]
[1726414535846,6.5287,2413.3,2412.9,2.4691]
[1726414536043,0.10905767,2413.2,2412.9,2.4691]
[1726414536367,6.5287,2413.3,2412.9,2.4691]
[1726414536557,0.10899401,2413.1,2412.9,2.4691]
[1726414536890,0.10893033,2413.0,2412.9,2.4691]
[1726414537043,6.5287,2413.3,2412.9,4.12583502]
[1726414537382,0.10905767,2413.2,2412.9,2.4691]
[1726414537747,6.5287,2413.3,2412.9,2.4691]
[1726414537945,0.10899401,2413.1,2412.9,2.4691]
[1726414538192,6.5287,2413.3,2412.9,2.4691]
[1726414538359,0.10893033,2413.0,2412.9,2.4691]
[1726414538556,6.5287,2413.3,2412.9,4.12574849]
[1726414538766,0.10893033,2413.0,2412.8,0.87178108]
[1726414538989,2.3849,2413.0,2412.7,5.01650108]
[1726414539206,0.10886666,2412.9,2412.8,1.65690272]
[1726414539503,0.10886666,2412.9,2412.8,1.65691535]
[1726414540216,4.25325666,2412.9,2412.6,0.87178108]
[1726414540430,4.25325666,2412.9,2412.5,0.87178108]
[1726414540431,4.1449,2412.6,2412.5,0.87178108]
[1726414540720,4.66840224,2412.6,2412.5,1.65720301]
[1726414540867,2.2763,2412.5,2412.3,0.87178108]
[1726414541072,0.10893648,2412.4,2412.3,0.87178108]
[1726414541272,0.10893648,2412.4,2412.3,1.65726011]
[1726414542404,0.10893648,2412.4,2412.3,2.52904119]
[1726414542805,0.10893648,2412.4,2412.3,1.65726011]
[1726414543364,0.10893648,2412.4,2412.3,2.52904119]
[1726414543671,0.10871685,2412.4,2412.3,2.52904119]
[1726414544017,2.2763,2412.7,2412.3,2.52854003]
[1726414544169,0.10871685,2412.4,2412.3,0.87178108]
[1726414544370,0.10871685,2412.4,2412.3,1.65675791]
[1726414544609,2.50393,2412.7,2412.3,1.65675791]
[1726414544784,2.50393,2412.7,2412.2,0.87178108]
[1726414544983,4.14502,2412.6,2412.3,1.65661188]
[1726414545188,4.14502,2412.6,2412.2,0.87178108]
[1726414545521,0.10878054,2412.5,2412.3,1.65661489]
[1726414545809,0.10878054,2412.5,2412.2,0.87178108]
[1726414546011,0.10878054,2412.5,2412.3,1.6564775]
[1726414546168,0.10878054,2412.5,2412.2,0.87178108]
[1726414546416,0.10878054,2412.5,2412.3,1.65647548]
[1726414546619,0.10878054,2412.5,2412.2,0.87178108]
[1726414546934,0.10878054,2412.5,2412.3,1.65639366]
[1726414547135,0.10878054,2412.5,2412.2,0.87178108]
[1726414547324,0.10878054,2412.5,2412.3,1.65639666]
[1726414547525,0.10878054,2412.5,2412.2,0.87178108]
[1726414547721,0.10878054,2412.5,2412.3,1.65628503]
[1726414547928,0.10878054,2412.5,2412.2,0.87178108]
[1726414548156,0.10878054,2412.5,2412.3,1.6562849]
[1726414548323,0.10878054,2412.5,2412.2,0.87178108]
[1726414548527,0.10878054,2412.5,2412.3,1.65628142]
[1726414548747,0.10878054,2412.5,2412.2,0.87178108]
[1726414548937,0.10878054,2412.5,2412.3,1.65619996]
[1726414549123,0.10878054,2412.5,2412.2,0.87178108]
[1726414549319,0.10878054,2412.5,2412.3,1.6561828]
[1726414549525,0.10878054,2412.5,2412.2,0.87178108]
[1726414549867,0.10878054,2412.5,2412.3,1.65613457]
[1726414550078,0.10878054,2412.5,2412.2,0.87178108]
[1726414550234,2.3778,2412.4,2412.3,1.65613215]
[1726414550434,2.48288228,2412.4,2412.3,1.65613215]
[1726414551669,2.48288228,2412.4,2412.1,0.91153219]
[1726414551868,2.48288228,2412.4,2412.2,1.65595952]
[1726414552074,2.48288228,2412.4,2412.1,0.91153219]
[1726414552226,2.48288228,2412.4,2412.2,1.65596124]
[1726414552430,2.48288228,2412.4,2412.1,0.91153219]
[1726414552668,2.48288228,2412.4,2412.2,1.65584691]
[1726414552973,2.48288228,2412.4,2412.1,0.91153219]
[1726414553174,2.48288228,2412.4,2412.2,1.65584927]
[1726414553485,2.48288228,2412.4,2412.1,0.91153219]
[1726414553761,2.48288228,2412.4,2412.2,1.6557322]
[1726414553971,2.48288228,2412.4,2412.1,0.91153219]
[1726414554167,2.48288228,2412.4,2412.2,1.65573042]
[1726414554463,2.48288228,2412.4,2412.1,0.91153219]
[1726414554665,2.48288228,2412.4,2412.2,1.65561597]
[1726414554882,0.10508228,2412.4,2412.1,3.26623219]
[1726414555026,0.10508228,2412.4,2412.2,1.65562416]
[1726414555230,0.10508228,2412.4,2412.1,3.26623219]
[1726414555470,0.10508228,2412.4,2412.2,1.65562464]
[1726414555658,0.10508228,2412.4,2412.1,3.26623219]
[1726414555844,0.10508228,2412.4,2412.2,1.6555121]
[1726414556045,0.10508228,2412.4,2412.1,3.26623219]
[1726414556252,0.10508228,2412.4,2412.2,1.65551132]
[1726414556438,0.10508228,2412.4,2412.1,3.26623219]
[1726414556661,0.10508228,2412.4,2412.2,1.65539897]
[1726414556863,0.10508228,2412.4,2412.1,3.26623219]
[1726414557033,0.10508228,2412.4,2412.2,1.65539489]
[1726414557357,0.10508228,2412.4,2412.1,3.26623219]
[1726414557667,0.10508228,2412.4,2412.2,1.65529679]
[1726414557996,0.10508228,2412.4,2412.1,3.26623219]
[1726414558268,0.10508228,2412.4,2412.2,1.65529166]
[1726414558476,0.10508228,2412.4,2412.1,3.26623219]
[1726414558770,0.10508228,2412.4,2412.2,1.65519286]
[1726414558940,0.10508228,2412.4,2412.1,3.26623219]
[1726414559145,0.10508228,2412.4,2412.2,1.65518417]
[1726414559347,0.10508228,2412.4,2412.1,3.26623219]
[1726414559546,0.10508228,2412.4,2412.2,1.65511824]
[1726414559761,0.10508228,2412.4,2412.1,3.26623219]
[1726414559976,0.10508228,2412.4,2412.2,1.65511871]
[1726414560257,0.10508228,2412.4,2412.1,3.26623219]
[1726414560453,0.10508228,2412.4,2412.2,1.65511493]
[1726414560671,0.10508228,2412.4,2412.1,3.26623219]
[1726414560965,0.10508228,2412.4,2412.2,1.65503831]
[1726414561171,0.10508228,2412.4,2412.1,3.26623219]
[1726414561406,0.10508228,2412.4,2412.2,1.65503857]
[1726414561566,0.10508228,2412.4,2412.1,4.90442098]
[1726414561777,10.66788,2412.6,2412.2,1.65500583]
[1726414561977,0.10486593,2412.3,2412.1,3.26623219]
[1726414562272,4.1451,2412.5,2412.1,0.03975111]
[1726414562570,4.1451,2412.5,2412.2,1.65501521]
[1726414562870,4.1451,2412.5,2412.1,0.91153219]
[1726414563035,4.1451,2412.5,2412.2,1.65496653]
[1726414563233,4.1451,2412.5,2412.1,0.91153219]
[1726414563465,4.1451,2412.5,2412.2,1.65494887]
[1726414563665,4.1451,2412.5,2412.1,0.03975111]
[1726414564344,4.1451,2412.5,2412.2,1.65496267]
[1726414564548,4.1451,2412.5,2412.1,0.91153219]
[1726414564836,4.1451,2412.5,2412.2,1.65490309]
[1726414565041,4.1451,2412.5,2412.1,0.91153219]
[1726414565258,4.1451,2412.5,2412.2,1.65490467]
[1726414565564,4.14528,2412.4,2412.1,0.03975111]
[1726414566474,6.52282,2412.6,2412.1,0.03975111]
[1726414566691,6.52282,2412.6,2412.2,4.00952828]
[1726414566874,6.52282,2412.6,2412.2,2.3547]
[1726414567080,10.66783,2412.6,2412.2,2.3547]
[1726414567972,6.52281,2412.6,2412.2,2.3547]
[1726414568202,6.5228,2412.6,2412.2,2.3547]
[1726414568418,10.66779,2412.6,2412.2,2.3547]
[1726414568567,6.52279,2412.6,2412.2,2.3547]
[1726414569287,10.66778,2412.6,2412.2,2.3547]
[1726414569488,10.66778,2412.6,2412.1,0.91153219]
[1726414569489,4.14509,2412.5,2412.1,0.91153219]
[1726414569705,4.14509,2412.5,2412.1,0.03975111]
[1726414569879,0.10492963,2412.4,2412.1,0.03975111]
[1726414570666,0.10492963,2412.4,2412.2,1.6548646]
[1726414570866,0.10492963,2412.4,2412.1,0.91153219]
[1726414571111,0.10492963,2412.4,2412.2,1.65486525]
[1726414571419,0.10492963,2412.4,2412.1,0.91153219]
[1726414571610,0.10492963,2412.4,2412.2,1.65551014]
[1726414571781,0.10492963,2412.4,2412.1,0.03975111]
[1726414572172,0.10492963,2412.4,2412.1,4.18550111]
[1726414572503,0.10485467,2412.3,2412.1,1.50723008]
[1726414572684,4.14509,2412.5,2412.1,0.03975111]
[1726414572882,0.10491836,2412.4,2412.1,0.03975111]
[1726414573318,0.10491836,2412.4,2412.2,1.65554637]
[1726414573488,0.10491836,2412.4,2412.1,0.91153219]
[1726414573688,0.10491836,2412.4,2412.2,1.65558042]
[1726414573916,0.10491836,2412.4,2412.1,0.91153219]
[1726414574106,0.10491836,2412.4,2412.2,1.65558111]
[1726414574413,0.10491836,2412.4,2412.1,0.91153219]
[1726414574615,0.10491836,2412.4,2412.2,1.65574028]
[1726414574819,0.10491836,2412.4,2412.1,0.91153219]
[1726414575110,0.10485467,2412.3,2412.2,1.65574476]
[1726414575473,6.52279,2412.6,2412.2,1.65574476]
[1726414575673,0.10498205,2412.5,2412.1,0.91153219]
[1726414575901,0.10498205,2412.5,2412.1,2.55273898]
[1726414576218,0.10498205,2412.5,2412.2,1.65586613]
[1726414576375,0.10498205,2412.5,2412.1,2.55273898]
[1726414576571,0.10498205,2412.5,2412.2,1.65600334]
[1726414576778,0.10498205,2412.5,2412.1,2.55273898]
[1726414577080,0.10498205,2412.5,2412.2,1.65600296]
[1726414577304,0.10498205,2412.5,2412.1,2.55273898]
[1726414577623,0.10498205,2412.5,2412.2,1.65600436]
[1726414577838,0.10498205,2412.5,2412.1,2.55273898]
[1726414578029,0.10498205,2412.5,2412.2,1.65614667]
[1726414578327,0.10498205,2412.5,2412.1,2.55273898]
[1726414578533,0.10498205,2412.5,2412.2,2.52791855]
[1726414578836,0.10498205,2412.5,2412.4,4.16839392]
[1726414579011,0.10498205,2412.5,2412.4,9.96996036]
[1726414579184,2.4737,2412.8,2412.4,9.96996036]
[1726414579384,0.10494809,2412.5,2412.4,4.16839392]
[1726414579627,11.43448,2412.9,2412.4,7.88378509]
[1726414579824,0.10492258,2412.5,2412.4,12.73426238]
[1726414580037,7.29,2412.9,2412.6,2.385]
[1726414580239,7.29,2412.9,2412.7,0.652997]
[1726414580407,7.29,2412.9,2412.6,2.385]
[1726414580733,4.14432,2413.0,2412.7,1.65656276]
[1726414580892,4.14432,2413.0,2412.6,3.25517113]
[1726414581099,4.14432,2413.0,2412.7,1.65656844]
[1726414581315,4.14432,2413.0,2412.6,3.25517113]
[1726414581642,4.14432,2413.0,2412.7,1.65672212]
[1726414581800,4.14432,2413.0,2412.6,4.83704613]
[1726414582000,4.14432,2413.0,2412.7,1.65671866]
[1726414582324,4.14432,2413.0,2412.6,4.83704613]
[1726414582523,4.14432,2413.0,2412.7,1.65659613]
[1726414582725,4.14432,2413.0,2412.6,4.83704613]
[1726414582904,4.14432,2413.0,2412.7,1.65683507]
[1726414583237,4.14432,2413.0,2412.6,4.83704613]
[1726414583424,4.14432,2413.0,2412.7,1.65682977]
[1726414583738,4.14432,2413.0,2412.6,4.83704613]
[1726414583914,4.14432,2413.0,2412.7,1.65679258]
[1726414584102,4.14432,2413.0,2412.6,4.83704613]
[1726414584302,4.14432,2413.0,2412.7,1.65672272]
[1726414584529,4.14432,2413.0,2412.6,4.83704613]
[1726414584829,6.72335085,2412.9,2412.5,0.87017113]
[1726414585033,6.72335085,2412.9,2412.6,1.65700051]
[1726414585235,6.72335085,2412.9,2412.5,0.87017113]
[1726414585420,0.10523085,2412.9,2412.6,1.65706192]
[1726414585624,0.10523085,2412.9,2412.7,3.44062215]
[1726414585809,2.4737,2413.5,2412.8,2.385]
[1726414586017,2.4737,2413.5,2413.0,1.78339392]
[1726414586196,6.61708,2413.5,2413.0,1.78339392]
[1726414589935,6.61708,2413.5,2413.1,2.3436]
[1726414596111,4.14354,2413.4,2413.1,2.3436]
[1726414598254,3.0,2413.9,2413.3,2.3436]
[1726414598255,4.14285,2413.8,2413.3,2.3436]
[1726414598553,8.28581,2413.8,2413.3,2.3436]
[1726414598852,4.14285,2413.8,2413.3,2.3436]
[1726414599213,4.14311,2413.7,2413.3,2.3436]
[1726414599906,0.10228739,2413.6,2413.3,2.3436]
[1726414611989,0.10228739,2413.6,2413.4,1.78339392]
[1726414612393,4.14285,2413.8,2413.4,1.78339392]
[1726414612548,0.1021774,2413.5,2413.4,1.78339392]
[1726414612748,4.14285,2413.8,2413.4,1.78339392]
[1726414612955,0.10230469,2413.7,2413.4,1.78339392]
[1726414613165,4.14285,2413.8,2413.4,1.78339392]
[1726414613389,0.1022537,2413.7,2413.3,3.17067039]
[1726414613692,4.2453837,2413.7,2413.3,2.3436]
[1726414613878,0.10221555,2413.6,2413.3,2.3436]
[1726414617074,4.24540555,2413.6,2413.3,2.3436]
[1726414617472,0.10221555,2413.6,2413.3,2.3436]
[1726414619879,4.24540555,2413.6,2413.3,2.3436]
[1726414620088,6.56193,2413.5,2413.1,2.4166]
[1726414620373,0.10219094,2413.4,2413.1,2.4166]
[1726414622080,4.24573094,2413.4,2412.9,4.19999392]
[1726414622387,4.24573094,2413.4,2413.0,1.65292985]
[1726414622560,4.24573094,2413.4,2412.9,5.07016505]
[1726414622732,4.24573094,2413.4,2413.0,1.6532671]
[1726414622933,4.24573094,2413.4,2412.9,5.07016505]
[1726414623171,4.24573094,2413.4,2412.9,4.19999392]
[1726414623329,4.24573094,2413.4,2412.9,5.66619679]
[1726414623534,4.24573094,2413.4,2412.9,9.81056679]
[1726414623979,0.10219094,2413.4,2413.0,4.14416]
[1726414624174,0.10219094,2413.4,2413.1,1.39547268]
[1726414624347,0.10219094,2413.4,2413.2,2.4166]
[1726414627540,4.24581094,2413.4,2413.0,3.28677113]
[1726414627837,4.24581094,2413.4,2413.0,2.4166]
[1726414628489,4.24581094,2413.4,2413.1,1.65549588]
[1726414628789,4.24581094,2413.4,2413.0,3.28677113]
[1726414628951,4.24581094,2413.4,2413.0,2.4166]
[1726414629341,8.38944094,2413.4,2412.9,2.65356505]
[1726414629544,8.38948094,2413.4,2413.0,1.655935]
[1726414629740,4.24581094,2413.4,2412.9,6.79789505]
[1726414629971,4.24581094,2413.4,2413.0,2.52604142]
[1726414630277,4.24581094,2413.4,2413.1,1.65587029]
[1726414630484,4.24581094,2413.4,2413.0,0.87017113]
[1726414630775,4.24581094,2413.4,2413.1,1.65600952]
[1726414630974,4.24581094,2413.4,2413.0,2.50036357]
[1726414631177,4.24581094,2413.4,2413.1,1.65629316]
[1726414631387,4.24581094,2413.4,2413.0,2.50036357]
[1726414631537,4.24581094,2413.4,2413.1,1.65628841]
[1726414631740,4.24581094,2413.4,2413.0,2.50036357]
[1726414631940,4.24581094,2413.4,2413.1,1.65624864]
[1726414632142,4.24581094,2413.4,2413.0,2.50036357]
[1726414632380,4.24581094,2413.4,2413.1,1.65634484]
[1726414632540,4.24581094,2413.4,2413.1,2.4754]
[1726414633165,0.10219094,2413.4,2413.1,4.25879392]
[1726414633982,4.24572094,2413.4,2413.1,4.25879392]
[1726414634189,4.24572094,2413.4,2413.1,2.4754]
[1726414634500,4.24572094,2413.4,2413.0,2.50036357]
[1726414634639,4.24572094,2413.4,2413.1,1.65654427]
[1726414634984,4.24572094,2413.4,2413.0,2.50036357]
[1726414635280,4.24572094,2413.4,2413.1,1.65654124]
[1726414635485,4.24572094,2413.4,2413.0,2.50036357]
[1726414635646,4.24572094,2413.4,2413.1,1.65714847]
[1726414635843,4.24572094,2413.4,2413.0,2.50036357]
[1726414636047,4.24572094,2413.4,2413.1,5.53121404]
[1726414636048,0.10219094,2413.4,2413.1,5.53121404]
[1726414636358,0.10219094,2413.4,2413.2,1.65700688]
[1726414636543,0.10219094,2413.4,2413.1,2.65356505]
[1726414636739,0.10219094,2413.4,2413.2,1.65709566]
[1726414636956,4.24572094,2413.4,2413.1,2.65356505]
[1726414637184,4.24572094,2413.4,2413.2,1.65704395]
[1726414637348,4.24572094,2413.4,2413.1,0.87017113]
[1726414637552,4.24572094,2413.4,2413.2,1.65721031]
[1726414637750,4.24572094,2413.4,2413.1,0.87017113]
[1726414637978,4.24572094,2413.4,2413.2,1.65719908]
[1726414638165,4.24572094,2413.4,2413.1,0.87017113]
[1726414638488,4.24572094,2413.4,2413.2,1.65718436]
[1726414638675,4.24572094,2413.4,2413.1,0.87017113]
[1726414638877,4.24572094,2413.4,2413.2,1.65731161]
[1726414639189,4.24572094,2413.4,2413.1,0.87017113]
[1726414639398,4.24572094,2413.4,2413.2,1.65733913]
[1726414639693,4.24572094,2413.4,2413.1,0.87017113]
[1726414639985,4.24572094,2413.4,2413.2,1.65748486]
[1726414640197,4.24572094,2413.4,2413.1,0.87017113]
[1726414640406,4.24572094,2413.4,2413.2,1.65749386]
[1726414640699,4.24572094,2413.4,2413.1,0.87017113]
[1726414640902,0.10219094,2413.4,2413.2,1.65763229]
[1726414641052,0.10219094,2413.4,2413.3,2.4754]
[1726414641255,0.10219094,2413.4,2413.3,5.91634152]
[1726414641555,0.09551342,2413.4,2413.3,6.78651265]
[1726414641769,8.28589,2413.8,2413.3,6.78651265]
[1726414641968,0.09570435,2413.7,2413.4,1.6575476]
[1726414642168,8.28589,2413.8,2413.3,5.12896505]
[1726414642372,0.09570998,2413.7,2413.4,1.65756663]
[1726414642556,8.28589,2413.8,2413.3,5.12896505]
[1726414642770,0.09570998,2413.7,2413.4,1.65779229]
[1726414642969,4.14293,2413.8,2413.3,10.59993543]
[1726414643164,4.14293,2413.8,2413.4,1.65770715]
[1726414643165,0.095608,2413.7,2413.4,1.65770715]
[1726414643369,8.28587,2413.8,2413.3,5.12896505]
[1726414643692,0.095608,2413.7,2413.4,1.65784589]
[1726414643858,0.095608,2413.7,2413.3,5.12896505]
[1726414644061,4.14293,2413.8,2413.4,1.67464468]
[1726414644290,0.09554436,2413.6,2413.3,6.36026574]
[1726414644594,0.09548071,2413.5,2413.4,1.67472028]
[1726414644796,2.3259,2413.7,2413.4,1.67472028]
[1726414645088,0.09548071,2413.5,2413.3,0.87017113]
[1726414645300,2.3259,2413.7,2413.4,1.67472779]
[1726414645595,6.46892,2413.7,2413.3,0.87017113]
[1726414645794,6.46892,2413.7,2413.4,1.67481431]
[1726414645995,6.46892,2413.7,2413.3,0.87017113]
[1726414646202,6.46892,2413.7,2413.4,1.67480004]
[1726414646500,6.46892,2413.7,2413.3,0.87017113]
[1726414646651,6.46892,2413.7,2413.4,1.67476955]
[1726414646853,6.46892,2413.7,2413.3,0.87017113]
[1726414647082,6.46892,2413.7,2413.4,1.67478195]
[1726414647297,6.46892,2413.7,2413.3,0.87017113]
[1726414647466,6.46892,2413.7,2413.4,1.67479467]
[1726414647668,6.46892,2413.7,2413.3,0.87017113]
[1726414647864,6.46892,2413.7,2413.4,1.67480969]
[1726414648074,6.46892,2413.7,2413.3,0.87017113]
[1726414648304,4.14293,2413.8,2413.4,4.15015785]
[1726414648485,4.14258,2414.0,2413.7,1.78339392]
[1726414648684,7.29,2414.1,2413.7,4.25879392]
[1726414648854,11.43234,2414.1,2413.8,0.42587939]
[1726414649053,4.14234,2414.1,2413.8,0.42587939]
[1726414649954,2.3259,2414.2,2413.6,0.87017113]
[1726414650180,2.3259,2414.2,2413.5,3.28007113]
[1726414650380,2.3259,2414.2,2413.6,1.67369887]
[1726414650597,4.14262,2414.0,2413.6,3.00174568]
[1726414650895,4.14262,2414.0,2413.7,1.67350562]
[1726414651097,6.46811,2414.2,2413.6,8.01508681]
[1726414651399,6.46811,2414.2,2413.7,3.26069149]
[1726414651704,6.46811,2414.2,2413.7,1.58712904]
[1726414652090,4.14237,2414.1,2413.7,1.58712904]
[1726414654802,4.14255,2414.0,2413.7,1.58712904]
[1726414655001,6.53567,2413.9,2413.5,3.28007113]
[1726414655176,6.53567,2413.9,2413.5,2.4099]
[1726414655383,6.53567,2413.9,2413.5,3.37386475]
[1726414659788,0.09266062,2413.8,2413.5,3.37386475]
[1726414660202,6.53567,2413.9,2413.5,3.37386475]
[1726414660398,0.09266062,2413.8,2413.5,3.37386475]
[1726414663686,4.23551062,2413.8,2413.5,3.37386475]
[1726414663990,2.3929,2413.7,2413.3,0.87017113]
[1726414664298,0.09263192,2413.6,2413.4,1.67232148]
[1726414664484,0.09263192,2413.6,2413.3,0.87017113]
[1726414664485,4.23585192,2413.6,2413.3,0.87017113]
[1726414664690,4.23585192,2413.6,2413.2,5.06346505]
[1726414664691,4.1434,2413.5,2413.2,5.06346505]
[1726414664885,4.1434,2413.5,2413.3,1.67235889]
[1726414665183,0.09248772,2413.4,2413.2,5.06346505]
[1726414665415,8.28655,2413.6,2413.3,1.67239451]
[1726414665595,8.28655,2413.6,2413.2,2.65356505]
[1726414665596,0.09244957,2413.3,2413.2,0.87017113]
[1726414665814,4.14338,2413.5,2413.2,2.54252693]
[1726414665985,4.14353,2413.4,2413.1,0.87017113]
[1726414666192,0.09242422,2413.3,2413.2,1.67238207]
[1726414668617,0.09242422,2413.3,2413.2,1.67157241]
[1726414670093,4.23612422,2413.3,2413.0,2.65356505]
[1726414670338,4.23612422,2413.3,2413.1,1.67161656]
[1726414670492,4.23612422,2413.3,2413.0,2.65356505]
[1726414670693,4.14387,2413.2,2413.1,1.67165317]
[1726414671246,4.14417,2413.1,2412.8,0.87017113]
[1726414671544,4.14417,2413.1,2412.9,1.67164252]
[1726414671830,0.08935521,2413.0,2412.8,0.87017113]
[1726414672029,0.08935521,2413.0,2412.9,1.67165489]
[1726414672232,4.23356521,2413.0,2412.9,1.67165489]
[1726414672441,4.23356521,2413.0,2412.7,2.65356505]
[1726414672603,4.23356521,2413.0,2412.8,1.67154317]
[1726414672815,4.23356521,2413.0,2412.7,2.65356505]
[1726414672995,4.23356521,2413.0,2412.8,1.6715437]
[1726414673200,4.23356521,2413.0,2412.7,2.65356505]
[1726414673402,4.23356521,2413.0,2412.8,1.67139567]
[1726414673601,4.23356521,2413.0,2412.7,2.65356505]
[1726414673818,4.23356521,2413.0,2412.8,1.67139383]
[1726414674022,8.37790521,2413.0,2412.7,2.65356505]
[1726414674334,4.23356521,2413.0,2412.8,1.67140133]
[1726414674536,4.23356521,2413.0,2412.7,2.65356505]
[1726414674833,4.23356521,2413.0,2412.8,1.6712542]
[1726414675037,4.23356521,2413.0,2412.7,2.65356505]
[1726414675241,4.23356521,2413.0,2412.8,1.67126722]
[1726414675394,4.23356521,2413.0,2412.7,2.65356505]
[1726414675594,4.23356521,2413.0,2412.8,1.67113748]
[1726414675836,4.23356521,2413.0,2412.7,2.65356505]
[1726414676044,4.23356521,2413.0,2412.8,1.67114519]
[1726414676339,4.23356521,2413.0,2412.7,2.65356505]
[1726414676498,4.23356521,2413.0,2412.8,1.67100542]
[1726414676698,4.23356521,2413.0,2412.7,2.65356505]
[1726414676907,2.3257,2412.9,2412.8,1.67101381]
[1726414677114,2.3257,2412.9,2412.6,0.87017113]
[1726414677340,2.41474836,2412.9,2412.7,1.67084879]
[1726414677636,2.41474836,2412.9,2412.6,0.87017113]
[1726414677796,2.41474836,2412.9,2412.7,1.67083714]
[1726414678015,6.55913836,2412.9,2412.6,0.87017113]
[1726414678257,6.55913836,2412.9,2412.7,1.67083433]
[1726414678464,6.55913836,2412.9,2412.6,0.87017113]
[1726414678761,6.55913836,2412.9,2412.7,1.67064032]
[1726414678938,2.41474836,2412.9,2412.6,0.87017113]
[1726414679139,2.41474836,2412.9,2412.7,1.67063341]
[1726414679329,2.41474836,2412.9,2412.6,0.87017113]
[1726414679513,2.41474836,2412.9,2412.7,1.67046109]
[1726414679719,2.41474836,2412.9,2412.6,0.87017113]
[1726414679946,2.41474836,2412.9,2412.7,1.67046415]
[1726414680131,2.41474836,2412.9,2412.6,0.87017113]
[1726414680342,2.41474836,2412.9,2412.7,1.67041713]
[1726414680547,2.41474836,2412.9,2412.5,1.78339392]
[1726414680548,2.41474836,2412.9,2412.5,2.65356505]
[1726414680719,2.41474836,2412.9,2412.6,2.54058022]
[1726414680920,2.41474836,2412.9,2412.7,1.67040909]
[1726414680921,6.55919836,2412.9,2412.7,1.67040909]
[1726414681153,6.55919836,2412.9,2412.5,2.65356505]
[1726414681357,6.55919836,2412.9,2412.6,1.67038702]
[1726414681519,6.55919836,2412.9,2412.5,2.65356505]
[1726414681720,6.55919836,2412.9,2412.6,1.6703873]
[1726414682055,6.55919836,2412.9,2412.5,2.65356505]
[1726414682362,6.55919836,2412.9,2412.6,1.67024207]
[1726414682535,6.55919836,2412.9,2412.5,2.65356505]
[1726414682856,6.55919836,2412.9,2412.6,1.67004864]
[1726414683052,6.55919836,2412.9,2412.5,2.65356505]
[1726414683361,6.55919836,2412.9,2412.6,1.67005535]
[1726414683557,6.55919836,2412.9,2412.5,3.87160574]
[1726414683859,6.55919836,2412.9,2412.5,3.00143461]
[1726414684174,6.55919836,2412.9,2412.6,1.66986621]
[1726414684464,4.14457,2412.8,2412.5,1.78339392]
[1726414684813,0.0858126,2412.7,2412.5,1.78339392]
[1726414685017,4.14457,2412.8,2412.5,2.82770479]
[1726414685472,0.08568507,2412.7,2412.5,2.82770479]
[1726414685839,4.14457,2412.8,2412.5,2.82770479]
[1726414686053,0.08562139,2412.6,2412.5,2.82770479]
[1726414686379,4.14457,2412.8,2412.5,4.49719224]
[1726414686587,0.08562139,2412.6,2412.5,2.82770479]
[1726414686871,4.14457,2412.8,2412.5,4.49697986]
[1726414687041,0.08562139,2412.6,2412.5,2.82770479]
[1726414687372,4.14457,2412.8,2412.5,4.49697306]
[1726414687576,0.08562139,2412.6,2412.5,2.82770479]
[1726414687753,2.3257,2412.9,2412.5,4.49680584]
[1726414688078,6.47011,2412.9,2412.5,2.82770479]
[1726414688273,0.08574875,2412.8,2412.5,1.78339392]
[1726414691345,0.08574875,2412.8,2412.7,1.78339392]
[1726414691782,4.14421,2413.0,2412.7,1.78339392]
[1726414691969,0.08574875,2412.8,2412.7,1.78339392]
[1726414692172,8.28854,2413.0,2412.7,1.78339392]
[1726414692554,0.08579835,2412.9,2412.7,1.78339392]
[1726414693057,0.08579835,2412.9,2412.8,2.4383]
[1726414695656,6.57993,2413.1,2412.8,2.4383]
[1726414695851,0.08546835,2412.9,2412.8,2.4383]
[1726414696092,6.57993,2413.1,2412.8,2.4383]
[1726414696296,0.08531533,2412.9,2412.8,2.4383]
[1726414696501,6.57993,2413.1,2412.8,2.4383]
[1726414696664,0.08539184,2412.9,2412.6,2.4383]
[1726414696877,6.57993,2413.1,2412.6,2.4383]
[1726414697209,0.08532817,2412.8,2412.6,2.4383]
[1726414697497,0.0853155,2412.7,2412.6,2.4383]
[1726414697697,6.57993,2413.1,2412.6,3.7764975]
[1726414697861,0.08521691,2412.7,2412.6,3.7764975]
[1726414698059,6.57993,2413.1,2412.6,3.7764975]
[1726414698060,4.1443,2413.0,2412.6,3.7764975]
[1726414698285,0.08521691,2412.7,2412.6,2.4383]
[1726414698491,4.1443,2413.0,2412.6,2.4383]
[1726414698674,0.08521691,2412.7,2412.6,2.4383]
[1726414698868,4.1443,2413.0,2412.6,2.4383]
[1726414699075,0.08521691,2412.7,2412.6,2.4383]
[1726414699273,4.1443,2413.0,2412.6,2.4383]
[1726414700103,0.08534425,2412.9,2412.6,2.4383]
[1726414707410,0.08534425,2412.9,2412.7,1.67079951]
[1726414707605,0.08534425,2412.9,2412.6,3.30847113]
[1726414707806,0.08534425,2412.9,2412.7,1.67083783]
[1726414708020,0.08534425,2412.9,2412.6,3.30847113]
[1726414708225,0.08534425,2412.9,2412.7,1.67084834]
[1726414708409,0.08534425,2412.9,2412.6,3.30847113]
[1726414708610,0.08534425,2412.9,2412.7,1.67127297]
[1726414708913,0.08534425,2412.9,2412.6,3.30847113]
[1726414709120,0.08534425,2412.9,2412.7,1.67126639]